[Event "Titled Tuesday Blitz February 07 Early 2023"]
[White "Babikov, Ivan"]
[Black "Liyanage, Ranindu Dilshan"]
[WhiteFideId "4161106"]
[BlackFideId "9915834"]
[WhiteElo "2239"]
[BlackElo "2342"]
[Result "0-1"]
[Round "01"]
[TimeControl "180+2"]
[Date "2023.02.07"]
[WhiteClock "0:00:14"]
[BlackClock "0:00:15"]

1. Nf3 {[%clk 0:02:56]}  Nf6 {[%clk 0:02:59]} 2. g3 {[%clk 0:02:57]}  e6 {[%clk 0:03:00]} 3. Bg2 {[%clk 0:02:57]}  d5 {[%clk 0:03:00]} 4. O-O {[%clk 0:02:58]}  Be7 {[%clk 0:03:00]} 5. d4 {[%clk 0:02:58]}  O-O {[%clk 0:03:01]} 6. c4 {[%clk 0:02:59]}  dxc4 {[%clk 0:03:02]} 7. Ne5 {[%clk 0:02:53]}  c5 {[%clk 0:03:01]} 8. dxc5 {[%clk 0:02:51]}  Qc7 {[%clk 0:03:02]} 9. Nxc4 {[%clk 0:02:39]}  Qxc5 {[%clk 0:03:00]} 10. Nba3 {[%clk 0:02:39]}  Rd8 {[%clk 0:02:56]} 11. Qc2 {[%clk 0:02:34]}  Nc6 {[%clk 0:02:56]} 12. Be3 {[%clk 0:02:33]}  Qh5 {[%clk 0:02:55]} 13. Rfd1 {[%clk 0:02:26]}  Bd7 {[%clk 0:02:52]} 14. Bf3 {[%clk 0:02:16]}  Qh3 {[%clk 0:02:39]} 15. Bg2 {[%clk 0:02:15]}  Qh5 {[%clk 0:02:39]} 16. Bf3 {[%clk 0:02:16]}  Ng4 {[%clk 0:02:39]} 17. Bxg4 {[%clk 0:02:06]}  Qxg4 {[%clk 0:02:40]} 18. Qb3 {[%clk 0:01:53]}  b5 {[%clk 0:01:53]} 19. Nd6 {[%clk 0:01:43]}  Na5 {[%clk 0:01:34]} 20. Qc2 {[%clk 0:01:31]}  a6 {[%clk 0:01:04]} 21. Qe4 {[%clk 0:01:25]}  Qh5 {[%clk 0:00:55]} 22. Bb6 {[%clk 0:01:23]}  Bc6 {[%clk 0:00:52]} 23. Qe3 {[%clk 0:01:06]}  Rxd6 {[%clk 0:00:32]} 24. Bxa5 {[%clk 0:01:02]}  Rxd1+ {[%clk 0:00:32]} 25. Rxd1 {[%clk 0:01:02]}  Bc5 {[%clk 0:00:33]} 26. Qd3 {[%clk 0:00:49]}  Qh3 {[%clk 0:00:24]} 27. Qd8+ {[%clk 0:00:46]}  Rxd8 {[%clk 0:00:23]} 28. Rxd8+ {[%clk 0:00:44]}  Bf8 {[%clk 0:00:23]} 29. f3 {[%clk 0:00:32]}  h6 {[%clk 0:00:21]} 30. Bb4 {[%clk 0:00:32]}  Qf5 {[%clk 0:00:20]} 31. Bxf8 {[%clk 0:00:28]}  Kh7 {[%clk 0:00:21]} 32. Be7 {[%clk 0:00:20]}  Qe5 {[%clk 0:00:20]} 33. Kf2 {[%clk 0:00:19]}  Qxb2 {[%clk 0:00:20]} 34. Rc8 {[%clk 0:00:18]}  Bd5 {[%clk 0:00:19]} 35. Rc2 {[%clk 0:00:15]}  Qd4+ {[%clk 0:00:19]} 36. Kg2 {[%clk 0:00:15]}  b4 {[%clk 0:00:17]} 37. Bc5 {[%clk 0:00:12]}  Qd1 {[%clk 0:00:10]} 38. Bxb4 {[%clk 0:00:12]}  h5 {[%clk 0:00:10]} 39. Rd2 {[%clk 0:00:11]}  Qa1 {[%clk 0:00:10]} 40. h4 {[%clk 0:00:09]}  Bxa2 {[%clk 0:00:09]} 41. Nc2 {[%clk 0:00:07]}  Qb1 {[%clk 0:00:10]} 42. Bd6 {[%clk 0:00:05]}  Bd5 {[%clk 0:00:10]} 43. Ne3 {[%clk 0:00:06]}  Qb5 {[%clk 0:00:09]} 44. Nxd5 {[%clk 0:00:06]}  exd5 {[%clk 0:00:10]} 45. Bf4 {[%clk 0:00:06]}  Qc4 {[%clk 0:00:10]} 46. Be3 {[%clk 0:00:05]}  a5 {[%clk 0:00:11]} 47. Rd4 {[%clk 0:00:05]}  Qb3 {[%clk 0:00:10]} 48. Bf2 {[%clk 0:00:05]}  a4 {[%clk 0:00:10]} 49. Rd3 {[%clk 0:00:05]}  Qb5 {[%clk 0:00:08]} 50. Bd4 {[%clk 0:00:05]}  f6 {[%clk 0:00:08]} 51. Bc3 {[%clk 0:00:04]}  Qc4 {[%clk 0:00:08]} 52. Ba1 {[%clk 0:00:04]}  Qa2 {[%clk 0:00:08]} 53. Kf2 {[%clk 0:00:01]}  Qxa1 {[%clk 0:00:08]} 54. Rxd5 {[%clk 0:00:02]}  a3 {[%clk 0:00:08]} 55. Rxh5+ {[%clk 0:00:03]}  Kg8 {[%clk 0:00:08]} 56. Ra5 {[%clk 0:00:04]}  a2 {[%clk 0:00:08]} 57. h5 {[%clk 0:00:04]}  Qb2 {[%clk 0:00:07]} 58. Kg2 {[%clk 0:00:05]}  Qxe2+ {[%clk 0:00:06]} 59. Kh3 {[%clk 0:00:05]}  Qf1+ {[%clk 0:00:07]} 60. Kg4 {[%clk 0:00:05]}  a1=Q {[%clk 0:00:08]} 61. Rxa1 {[%clk 0:00:05]}  Qxa1 {[%clk 0:00:08]} 62. f4 {[%clk 0:00:06]}  Qd1+ {[%clk 0:00:08]} 63. Kh4 {[%clk 0:00:07]}  Kh7 {[%clk 0:00:09]} 64. g4 {[%clk 0:00:07]}  Qe1+ {[%clk 0:00:09]} 65. Kh3 {[%clk 0:00:07]}  Qe3+ {[%clk 0:00:10]} 66. Kh4 {[%clk 0:00:07]}  Qxf4 {[%clk 0:00:10]} 67. h6 {[%clk 0:00:08]}  Qxh6+ {[%clk 0:00:10]} 68. Kg3 {[%clk 0:00:08]}  Qe3+ {[%clk 0:00:11]} 69. Kh4 {[%clk 0:00:09]}  Kh6 {[%clk 0:00:11]} 70. g5+ {[%clk 0:00:09]}  fxg5+ {[%clk 0:00:11]} 71. Kg4 {[%clk 0:00:09]}  Qf4+ {[%clk 0:00:11]} 72. Kh3 {[%clk 0:00:10]}  g4+ {[%clk 0:00:12]} 73. Kg2 {[%clk 0:00:11]}  Qf3+ {[%clk 0:00:13]} 74. Kg1 {[%clk 0:00:12]}  Qe2 {[%clk 0:00:13]} 75. Kh1 {[%clk 0:00:12]}  g3 {[%clk 0:00:13]} 76. Kg1 {[%clk 0:00:13]}  Qf2+ {[%clk 0:00:14]} 77. Kh1 {[%clk 0:00:14]}  Qh2# {[%clk 0:00:15]} 0-1


[Site "https://www.chess.com"]

[Event "Titled Tuesday Blitz February 07 Early 2023"]
[White "Belozerov, Andrei"]
[Black "Fernandez Garcia, Gumersindo"]
[WhiteFideId "4120213"]
[BlackFideId "24516740"]
[WhiteElo "2461"]
[BlackElo "2160"]
[Result "1/2-1/2"]
[Round "01"]
[TimeControl "180+2"]
[Date "2023.02.07"]
[WhiteClock "0:00:10"]
[BlackClock "0:00:47"]

1. e4 {[%clk 0:02:48]}  c5 {[%clk 0:02:50]} 2. Nf3 {[%clk 0:02:48]}  g6 {[%clk 0:02:50]} 3. d4 {[%clk 0:02:47]}  cxd4 {[%clk 0:02:51]} 4. Nxd4 {[%clk 0:02:48]}  Bg7 {[%clk 0:02:50]} 5. c4 {[%clk 0:02:47]}  Nc6 {[%clk 0:02:50]} 6. Be3 {[%clk 0:02:46]}  Nf6 {[%clk 0:02:50]} 7. Nc3 {[%clk 0:02:46]}  Ng4 {[%clk 0:02:51]} 8. Qxg4 {[%clk 0:02:45]}  Nxd4 {[%clk 0:02:51]} 9. Qd1 {[%clk 0:02:45]}  Ne6 {[%clk 0:02:52]} 10. Rc1 {[%clk 0:02:44]}  b6 {[%clk 0:02:50]} 11. Bd3 {[%clk 0:02:31]}  Bb7 {[%clk 0:02:49]} 12. O-O {[%clk 0:02:27]}  O-O {[%clk 0:02:26]} 13. Qd2 {[%clk 0:02:11]}  Nc5 {[%clk 0:02:25]} 14. Bb1 {[%clk 0:02:06]}  Re8 {[%clk 0:02:12]} 15. f3 {[%clk 0:01:56]}  Rc8 {[%clk 0:02:04]} 16. b4 {[%clk 0:01:54]}  Ne6 {[%clk 0:02:02]} 17. Nd5 {[%clk 0:01:53]}  d6 {[%clk 0:01:58]} 18. f4 {[%clk 0:01:49]}  Qd7 {[%clk 0:01:47]} 19. f5 {[%clk 0:01:44]}  Nc7 {[%clk 0:01:46]} 20. Bd4 {[%clk 0:01:15]}  Nxd5 {[%clk 0:01:41]} 21. exd5 {[%clk 0:01:13]}  b5 {[%clk 0:01:33]} 22. fxg6 {[%clk 0:00:56]}  hxg6 {[%clk 0:01:31]} 23. Bxg7 {[%clk 0:00:54]}  Kxg7 {[%clk 0:01:29]} 24. Rxf7+ {[%clk 0:00:43]}  Kxf7 {[%clk 0:01:18]} 25. Qh6 {[%clk 0:00:37]}  Qg4 {[%clk 0:00:57]} 26. Bxg6+ {[%clk 0:00:17]}  Qxg6 {[%clk 0:00:46]} 27. Rf1+ {[%clk 0:00:17]}  Qf6 {[%clk 0:00:47]} 28. Qh7+ {[%clk 0:00:16]}  Kf8 {[%clk 0:00:47]} 29. Qh8+ {[%clk 0:00:16]}  Kf7 {[%clk 0:00:47]} 30. Qh7+ {[%clk 0:00:16]}  Kf8 {[%clk 0:00:47]} 31. Qh8+ {[%clk 0:00:12]}  Kf7 {[%clk 0:00:47]} 32. Qh7+ {[%clk 0:00:10]} 1/2-1/2


[Site "https://www.chess.com"]

[Event "Titled Tuesday Blitz February 07 Early 2023"]
[White "Kirillov, Dmitry"]
[Black "Garayev, Kanan"]
[WhiteFideId "34180572"]
[BlackFideId "13406671"]
[WhiteElo "2179"]
[BlackElo "2346"]
[Result "0-1"]
[Round "01"]
[TimeControl "180+2"]
[Date "2023.02.07"]
[WhiteClock "0:00:03"]
[BlackClock "0:00:35"]

1. e4 {[%clk 0:01:55]}  c5 {[%clk 0:02:54]} 2. Nf3 {[%clk 0:01:55]}  Nf6 {[%clk 0:02:53]} 3. Nc3 {[%clk 0:01:52]}  d5 {[%clk 0:02:53]} 4. exd5 {[%clk 0:01:43]}  Nxd5 {[%clk 0:02:53]} 5. Bb5+ {[%clk 0:01:43]}  Bd7 {[%clk 0:02:53]} 6. Bc4 {[%clk 0:01:34]}  Nb6 {[%clk 0:02:44]} 7. Be2 {[%clk 0:01:02]}  Nc6 {[%clk 0:02:42]} 8. d4 {[%clk 0:01:00]}  cxd4 {[%clk 0:02:41]} 9. Nxd4 {[%clk 0:01:01]}  e5 {[%clk 0:02:42]} 10. Ndb5 {[%clk 0:00:57]}  Bf5 {[%clk 0:02:20]} 11. Be3 {[%clk 0:00:51]}  Bb4 {[%clk 0:02:09]} 12. O-O {[%clk 0:00:46]}  O-O {[%clk 0:02:08]} 13. Bd3 {[%clk 0:00:29]}  Bxd3 {[%clk 0:02:06]} 14. cxd3 {[%clk 0:00:28]}  a6 {[%clk 0:02:00]} 15. Na3 {[%clk 0:00:23]}  Nd5 {[%clk 0:01:56]} 16. Nab1 {[%clk 0:00:15]}  Be7 {[%clk 0:01:16]} 17. Nxd5 {[%clk 0:00:12]}  Qxd5 {[%clk 0:01:16]} 18. Nc3 {[%clk 0:00:13]}  Qd7 {[%clk 0:01:17]} 19. Qe2 {[%clk 0:00:13]}  Rad8 {[%clk 0:01:16]} 20. Rad1 {[%clk 0:00:13]}  f5 {[%clk 0:01:15]} 21. Bb6 {[%clk 0:00:12]}  Rde8 {[%clk 0:01:14]} 22. f4 {[%clk 0:00:12]}  exf4 {[%clk 0:01:11]} 23. Qf3 {[%clk 0:00:12]}  Bd6 {[%clk 0:01:08]} 24. Qd5+ {[%clk 0:00:09]}  Kh8 {[%clk 0:01:08]} 25. Rxf4 {[%clk 0:00:08]}  Ne7 {[%clk 0:00:54]} 26. Qd4 {[%clk 0:00:04]}  Nc6 {[%clk 0:00:49]} 27. Qd5 {[%clk 0:00:04]}  Qe7 {[%clk 0:00:49]} 28. Rff1 {[%clk 0:00:04]}  Rf6 {[%clk 0:00:41]} 29. Rxf5 {[%clk 0:00:03]}  Rh6 {[%clk 0:00:37]} 30. Rff1 {[%clk 0:00:02]}  Bxh2+ {[%clk 0:00:36]} 31. Kf2 {[%clk 0:00:03]}  Rf8+ {[%clk 0:00:35]} 0-1


[Site "https://www.chess.com"]

[Event "Titled Tuesday Blitz February 07 Early 2023"]
[White "Kononenko, Dmitry"]
[Black "Jakubowska, Anna"]
[WhiteFideId "14113538"]
[BlackFideId "1121952"]
[WhiteElo "2256"]
[BlackElo "2139"]
[Result "1/2-1/2"]
[Round "01"]
[TimeControl "180+2"]
[Date "2023.02.07"]
[WhiteClock "0:00:30"]
[BlackClock "0:00:14"]

1. e4 {[%clk 0:02:59]}  c6 {[%clk 0:02:58]} 2. d4 {[%clk 0:02:59]}  d5 {[%clk 0:02:58]} 3. e5 {[%clk 0:02:59]}  Bf5 {[%clk 0:02:57]} 4. Nc3 {[%clk 0:03:00]}  e6 {[%clk 0:02:55]} 5. g4 {[%clk 0:03:00]}  Bg6 {[%clk 0:02:55]} 6. Nge2 {[%clk 0:03:01]}  h6 {[%clk 0:02:54]} 7. Nf4 {[%clk 0:02:58]}  Bh7 {[%clk 0:02:54]} 8. Bd3 {[%clk 0:02:58]}  Bxd3 {[%clk 0:02:52]} 9. Qxd3 {[%clk 0:02:58]}  c5 {[%clk 0:02:50]} 10. Be3 {[%clk 0:02:56]}  Nc6 {[%clk 0:02:50]} 11. dxc5 {[%clk 0:02:47]}  Nxe5 {[%clk 0:02:46]} 12. Qb5+ {[%clk 0:02:48]}  Qd7 {[%clk 0:02:45]} 13. O-O-O {[%clk 0:02:47]}  Nxg4 {[%clk 0:02:36]} 14. Rhe1 {[%clk 0:02:40]}  Nxe3 {[%clk 0:02:30]} 15. Rxe3 {[%clk 0:02:40]}  Qxb5 {[%clk 0:02:27]} 16. Nxb5 {[%clk 0:02:38]}  O-O-O {[%clk 0:02:28]} 17. b4 {[%clk 0:02:31]}  a6 {[%clk 0:02:26]} 18. Nd4 {[%clk 0:02:29]}  g5 {[%clk 0:02:18]} 19. Nfxe6 {[%clk 0:02:20]}  fxe6 {[%clk 0:02:17]} 20. Nxe6 {[%clk 0:02:21]}  Re8 {[%clk 0:02:08]} 21. Rxd5 {[%clk 0:02:18]}  Nf6 {[%clk 0:02:07]} 22. Rf5 {[%clk 0:02:14]}  Ng4 {[%clk 0:01:59]} 23. Re4 {[%clk 0:02:13]}  Nxh2 {[%clk 0:01:53]} 24. f3 {[%clk 0:02:05]}  h5 {[%clk 0:01:42]} 25. Nxg5 {[%clk 0:01:52]}  Bh6 {[%clk 0:01:38]} 26. Kb2 {[%clk 0:01:50]}  Bxg5 {[%clk 0:01:33]} 27. Rxg5 {[%clk 0:01:50]}  Nxf3 {[%clk 0:01:33]} 28. Rxe8+ {[%clk 0:01:49]}  Rxe8 {[%clk 0:01:32]} 29. Rxh5 {[%clk 0:01:50]}  Re2 {[%clk 0:01:29]} 30. Rh3 {[%clk 0:01:31]}  Nd4 {[%clk 0:01:15]} 31. Rc3 {[%clk 0:01:31]}  Kc7 {[%clk 0:01:12]} 32. Rc4 {[%clk 0:01:28]}  Nc6 {[%clk 0:01:09]} 33. Kb3 {[%clk 0:01:21]}  Re3+ {[%clk 0:01:04]} 34. c3 {[%clk 0:01:20]}  Ne5 {[%clk 0:00:55]} 35. Rh4 {[%clk 0:01:18]}  Nf3 {[%clk 0:00:47]} 36. Rh7+ {[%clk 0:01:15]}  Kc6 {[%clk 0:00:47]} 37. a4 {[%clk 0:01:13]}  Nd2+ {[%clk 0:00:40]} 38. Kb2 {[%clk 0:01:01]}  Ne4 {[%clk 0:00:38]} 39. c4 {[%clk 0:00:56]}  Nd2 {[%clk 0:00:33]} 40. b5+ {[%clk 0:00:55]}  axb5 {[%clk 0:00:32]} 41. axb5+ {[%clk 0:00:56]}  Kxc5 {[%clk 0:00:32]} 42. Rxb7 {[%clk 0:00:52]}  Nxc4+ {[%clk 0:00:31]} 43. Kc2 {[%clk 0:00:52]}  Na3+ {[%clk 0:00:24]} 44. Kd2 {[%clk 0:00:51]}  Re6 {[%clk 0:00:22]} 45. b6 {[%clk 0:00:50]}  Nc4+ {[%clk 0:00:20]} 46. Kd3 {[%clk 0:00:50]}  Nxb6 {[%clk 0:00:21]} 47. Rc7+ {[%clk 0:00:50]}  Kd5 {[%clk 0:00:20]} 48. Rh7 {[%clk 0:00:51]}  Rf6 {[%clk 0:00:20]} 49. Rh5+ {[%clk 0:00:51]}  Kc6 {[%clk 0:00:19]} 50. Rh8 {[%clk 0:00:51]}  Nd5 {[%clk 0:00:19]} 51. Rc8+ {[%clk 0:00:51]}  Kb5 {[%clk 0:00:18]} 52. Rb8+ {[%clk 0:00:51]}  Kc5 {[%clk 0:00:18]} 53. Rc8+ {[%clk 0:00:51]}  Kd6 {[%clk 0:00:19]} 54. Rd8+ {[%clk 0:00:51]}  Ke5 {[%clk 0:00:19]} 55. Re8+ {[%clk 0:00:51]}  Kf5 {[%clk 0:00:19]} 56. Rh8 {[%clk 0:00:50]}  Nf4+ {[%clk 0:00:20]} 57. Ke3 {[%clk 0:00:50]}  Re6+ {[%clk 0:00:20]} 58. Kd4 {[%clk 0:00:50]}  Rd6+ {[%clk 0:00:20]} 59. Kc5 {[%clk 0:00:49]}  Rd1 {[%clk 0:00:21]} 60. Rf8+ {[%clk 0:00:48]}  Ke4 {[%clk 0:00:21]} 61. Re8+ {[%clk 0:00:48]}  Kf5 {[%clk 0:00:21]} 62. Rf8+ {[%clk 0:00:48]}  Ke5 {[%clk 0:00:22]} 63. Rh8 {[%clk 0:00:47]}  Ne6+ {[%clk 0:00:22]} 64. Kc4 {[%clk 0:00:46]}  Rd4+ {[%clk 0:00:22]} 65. Kc3 {[%clk 0:00:47]}  Rf4 {[%clk 0:00:22]} 66. Ra8 {[%clk 0:00:44]}  Kd5 {[%clk 0:00:22]} 67. Ra5+ {[%clk 0:00:42]}  Nc5 {[%clk 0:00:22]} 68. Ra8 {[%clk 0:00:43]}  Rf3+ {[%clk 0:00:22]} 69. Kd2 {[%clk 0:00:43]}  Kc4 {[%clk 0:00:22]} 70. Ke2 {[%clk 0:00:43]}  Rb3 {[%clk 0:00:22]} 71. Rh8 {[%clk 0:00:43]}  Kd4 {[%clk 0:00:21]} 72. Rd8+ {[%clk 0:00:39]}  Kc4 {[%clk 0:00:21]} 73. Rh8 {[%clk 0:00:39]}  Ra3 {[%clk 0:00:20]} 74. Rh4+ {[%clk 0:00:36]}  Kd5 {[%clk 0:00:20]} 75. Rh8 {[%clk 0:00:37]}  Ra2+ {[%clk 0:00:19]} 76. Ke3 {[%clk 0:00:37]}  Ra3+ {[%clk 0:00:20]} 77. Ke2 {[%clk 0:00:37]}  Ne4 {[%clk 0:00:19]} 78. Rd8+ {[%clk 0:00:36]}  Kc4 {[%clk 0:00:19]} 79. Rc8+ {[%clk 0:00:36]}  Kd4 {[%clk 0:00:19]} 80. Rd8+ {[%clk 0:00:36]}  Ke5 {[%clk 0:00:18]} 81. Re8+ {[%clk 0:00:37]}  Kd5 {[%clk 0:00:18]} 82. Rd8+ {[%clk 0:00:37]}  Nd6 {[%clk 0:00:18]} 83. Rh8 {[%clk 0:00:37]}  Kd4 {[%clk 0:00:17]} 84. Rd8 {[%clk 0:00:36]}  Ra6 {[%clk 0:00:18]} 85. Kf3 {[%clk 0:00:35]}  Rc6 {[%clk 0:00:17]} 86. Ke2 {[%clk 0:00:35]}  Rc2+ {[%clk 0:00:15]} 87. Kd1 {[%clk 0:00:35]}  Rc6 {[%clk 0:00:15]} 88. Ke2 {[%clk 0:00:35]}  Ke5 {[%clk 0:00:15]} 89. Rh8 {[%clk 0:00:34]}  Nf5 {[%clk 0:00:15]} 90. Re8+ {[%clk 0:00:33]}  Kf4 {[%clk 0:00:16]} 91. Ra8 {[%clk 0:00:33]}  Rd6 {[%clk 0:00:15]} 92. Ra4+ {[%clk 0:00:32]}  Kg3 {[%clk 0:00:15]} 93. Ra3+ {[%clk 0:00:30]}  Kf4 {[%clk 0:00:14]} 94. Ra4+ {[%clk 0:00:30]}  Ke5 {[%clk 0:00:14]} 95. Ra5+ {[%clk 0:00:30]}  Ke4 {[%clk 0:00:14]} 96. Ra8 {[%clk 0:00:30]}  Nd4+ {[%clk 0:00:14]} 1/2-1/2


[Site "https://www.chess.com"]

[Event "Titled Tuesday Blitz February 07 Early 2023"]
[White "Tillyaev, Ulugbek"]
[Black "Matveeva, Olga"]
[WhiteFideId "14202441"]
[BlackFideId "24107018"]
[WhiteElo "2287"]
[BlackElo "2128"]
[Result "1-0"]
[Round "01"]
[TimeControl "180+2"]
[Date "2023.02.07"]
[WhiteClock "0:01:34"]
[BlackClock "0:00:58"]

1. e4 {[%clk 0:03:00]}  e6 {[%clk 0:02:59]} 2. Nf3 {[%clk 0:03:00]}  d5 {[%clk 0:02:58]} 3. Nc3 {[%clk 0:03:01]}  Nf6 {[%clk 0:02:56]} 4. e5 {[%clk 0:03:01]}  Nfd7 {[%clk 0:02:56]} 5. d4 {[%clk 0:03:02]}  c5 {[%clk 0:02:57]} 6. dxc5 {[%clk 0:03:03]}  Bxc5 {[%clk 0:02:55]} 7. Bd3 {[%clk 0:03:02]}  Nc6 {[%clk 0:02:54]} 8. Bf4 {[%clk 0:03:02]}  a6 {[%clk 0:02:54]} 9. O-O {[%clk 0:03:01]}  b5 {[%clk 0:02:54]} 10. Bg3 {[%clk 0:02:52]}  Bb7 {[%clk 0:02:52]} 11. Re1 {[%clk 0:02:50]}  Qb6 {[%clk 0:02:45]} 12. a3 {[%clk 0:02:44]}  b4 {[%clk 0:02:43]} 13. Na4 {[%clk 0:02:41]}  Qc7 {[%clk 0:02:34]} 14. Nxc5 {[%clk 0:02:26]}  Nxc5 {[%clk 0:02:35]} 15. Bf1 {[%clk 0:02:26]}  O-O {[%clk 0:02:29]} 16. axb4 {[%clk 0:02:24]}  Nxb4 {[%clk 0:02:29]} 17. c3 {[%clk 0:02:21]}  Nc6 {[%clk 0:02:27]} 18. Nd2 {[%clk 0:02:19]}  d4 {[%clk 0:02:22]} 19. cxd4 {[%clk 0:02:06]}  Nxd4 {[%clk 0:02:23]} 20. Rc1 {[%clk 0:02:06]}  Qe7 {[%clk 0:02:16]} 21. Nc4 {[%clk 0:02:01]}  Nf5 {[%clk 0:02:06]} 22. Nd6 {[%clk 0:02:00]}  Nxd6 {[%clk 0:01:16]} 23. exd6 {[%clk 0:01:59]}  Qg5 {[%clk 0:01:16]} 24. Re5 {[%clk 0:01:56]}  f5 {[%clk 0:01:10]} 25. Rcxc5 {[%clk 0:01:46]}  h5 {[%clk 0:01:08]} 26. Rc7 {[%clk 0:01:34]}  Bd5 {[%clk 0:01:02]} 27. Rxd5 {[%clk 0:01:33]}  exd5 {[%clk 0:01:01]} 28. Qxd5+ {[%clk 0:01:34]}  Kh8 {[%clk 0:01:01]} 29. Be5 {[%clk 0:01:34]}  Rg8 {[%clk 0:00:58]} 30. Rxg7 {[%clk 0:01:34]} 1-0


[Site "https://www.chess.com"]

[Event "Titled Tuesday Blitz February 07 Early 2023"]
[White "Basso, Pier Luigi"]
[Black "Parkhov, Yair"]
[WhiteFideId "866970"]
[BlackFideId "2813408"]
[WhiteElo "2506"]
[BlackElo "2505"]
[Result "1-0"]
[Round "01"]
[TimeControl "180+2"]
[Date "2023.02.07"]
[WhiteClock "0:00:36"]
[BlackClock "0:00:11"]

1. d4 {[%clk 0:02:59]}  Nf6 {[%clk 0:02:53]} 2. c4 {[%clk 0:02:59]}  c6 {[%clk 0:02:50]} 3. Nf3 {[%clk 0:02:58]}  d5 {[%clk 0:02:51]} 4. cxd5 {[%clk 0:02:58]}  cxd5 {[%clk 0:02:50]} 5. Nc3 {[%clk 0:02:59]}  Nc6 {[%clk 0:02:51]} 6. Bf4 {[%clk 0:02:59]}  Bf5 {[%clk 0:02:51]} 7. e3 {[%clk 0:02:58]}  e6 {[%clk 0:02:52]} 8. Qb3 {[%clk 0:02:58]}  Bb4 {[%clk 0:02:48]} 9. Bb5 {[%clk 0:02:58]}  O-O {[%clk 0:02:44]} 10. Bxc6 {[%clk 0:02:58]}  Bxc3+ {[%clk 0:02:44]} 11. Qxc3 {[%clk 0:02:59]}  bxc6 {[%clk 0:02:45]} 12. O-O {[%clk 0:02:52]}  Rc8 {[%clk 0:02:41]} 13. Qa3 {[%clk 0:02:48]}  Ne4 {[%clk 0:01:58]} 14. Rfc1 {[%clk 0:02:45]}  g5 {[%clk 0:01:51]} 15. Bg3 {[%clk 0:02:45]}  h5 {[%clk 0:01:51]} 16. h4 {[%clk 0:02:41]}  f6 {[%clk 0:01:36]} 17. Qxa7 {[%clk 0:02:32]}  Rf7 {[%clk 0:01:35]} 18. Qa4 {[%clk 0:02:29]}  Nxg3 {[%clk 0:01:33]} 19. fxg3 {[%clk 0:02:29]}  Qd6 {[%clk 0:01:34]} 20. Qa6 {[%clk 0:02:05]}  Rcc7 {[%clk 0:01:21]} 21. hxg5 {[%clk 0:01:59]}  Be4 {[%clk 0:01:21]} 22. Qe2 {[%clk 0:01:43]}  Qxg3 {[%clk 0:01:14]} 23. Qf2 {[%clk 0:01:13]}  Qg4 {[%clk 0:01:12]} 24. g6 {[%clk 0:01:07]}  Rg7 {[%clk 0:01:06]} 25. Nd2 {[%clk 0:01:07]}  Bxg6 {[%clk 0:00:56]} 26. Qf3 {[%clk 0:00:57]}  Qxf3 {[%clk 0:00:31]} 27. Nxf3 {[%clk 0:00:56]}  Be4 {[%clk 0:00:31]} 28. Kf2 {[%clk 0:00:55]}  Rg4 {[%clk 0:00:31]} 29. Rh1 {[%clk 0:00:55]}  Rcg7 {[%clk 0:00:31]} 30. Rag1 {[%clk 0:00:55]}  f5 {[%clk 0:00:25]} 31. Rxh5 {[%clk 0:00:52]}  f4 {[%clk 0:00:23]} 32. exf4 {[%clk 0:00:50]}  Rxf4 {[%clk 0:00:23]} 33. Rh6 {[%clk 0:00:44]}  Kf7 {[%clk 0:00:19]} 34. Ke3 {[%clk 0:00:41]}  Rf5 {[%clk 0:00:15]} 35. Ne5+ {[%clk 0:00:39]}  Ke7 {[%clk 0:00:15]} 36. g4 {[%clk 0:00:40]}  Rf8 {[%clk 0:00:15]} 37. Rc1 {[%clk 0:00:37]}  Ra8 {[%clk 0:00:11]} 38. Rxc6 {[%clk 0:00:37]}  Kd8 {[%clk 0:00:11]} 39. Rh8+ {[%clk 0:00:36]}  Ke7 {[%clk 0:00:11]} 40. Rxa8 {[%clk 0:00:36]} 1-0


[Site "https://www.chess.com"]

[Event "Titled Tuesday Blitz February 07 Early 2023"]
[White "Vlassov, Nikolai"]
[Black "Manon-og, Ramon Jr."]
[WhiteFideId "4103360"]
[BlackFideId "5200776"]
[WhiteElo "2283"]
[BlackElo "1999"]
[Result "1-0"]
[Round "01"]
[TimeControl "180+2"]
[Date "2023.02.07"]
[WhiteClock "0:00:33"]
[BlackClock "0:00:10"]

1. e4 {[%clk 0:02:56]}  c5 {[%clk 0:02:59]} 2. c3 {[%clk 0:02:55]}  d6 {[%clk 0:02:59]} 3. d4 {[%clk 0:02:54]}  cxd4 {[%clk 0:03:00]} 4. cxd4 {[%clk 0:02:54]}  Nf6 {[%clk 0:03:01]} 5. Nc3 {[%clk 0:02:54]}  g6 {[%clk 0:03:01]} 6. Bg5 {[%clk 0:02:54]}  Bg7 {[%clk 0:03:01]} 7. e5 {[%clk 0:02:54]}  Ng8 {[%clk 0:02:19]} 8. f4 {[%clk 0:02:51]}  Nh6 {[%clk 0:02:10]} 9. Nf3 {[%clk 0:02:50]}  O-O {[%clk 0:02:10]} 10. Bc4 {[%clk 0:02:45]}  dxe5 {[%clk 0:02:06]} 11. fxe5 {[%clk 0:02:43]}  Nc6 {[%clk 0:01:56]} 12. Qd2 {[%clk 0:02:37]}  Nf5 {[%clk 0:01:54]} 13. O-O-O {[%clk 0:02:26]}  Qb6 {[%clk 0:01:28]} 14. g4 {[%clk 0:02:19]}  Qb4 {[%clk 0:01:26]} 15. Bb3 {[%clk 0:02:07]}  h6 {[%clk 0:01:14]} 16. gxf5 {[%clk 0:02:07]}  hxg5 {[%clk 0:01:15]} 17. fxg6 {[%clk 0:02:07]}  Be6 {[%clk 0:01:08]} 18. gxf7+ {[%clk 0:01:53]}  Bxf7 {[%clk 0:01:09]} 19. Bxf7+ {[%clk 0:01:52]}  Rxf7 {[%clk 0:01:10]} 20. Nxg5 {[%clk 0:01:51]}  Bh6 {[%clk 0:01:03]} 21. Rhg1 {[%clk 0:01:48]}  Rg7 {[%clk 0:01:03]} 22. h4 {[%clk 0:01:34]}  Rd8 {[%clk 0:00:58]} 23. Ne2 {[%clk 0:01:28]}  Qa4 {[%clk 0:00:57]} 24. Kb1 {[%clk 0:01:16]}  Nb4 {[%clk 0:00:39]} 25. Nc3 {[%clk 0:01:01]}  Qa6 {[%clk 0:00:32]} 26. Qe2 {[%clk 0:00:46]}  Qg6+ {[%clk 0:00:25]} 27. Qe4 {[%clk 0:00:43]}  Qxe4+ {[%clk 0:00:14]} 28. Ncxe4 {[%clk 0:00:39]}  Nc6 {[%clk 0:00:15]} 29. Ne6 {[%clk 0:00:38]}  Rxg1 {[%clk 0:00:13]} 30. Rxg1+ {[%clk 0:00:38]}  Kf7 {[%clk 0:00:13]} 31. Nxd8+ {[%clk 0:00:38]}  Nxd8 {[%clk 0:00:14]} 32. d5 {[%clk 0:00:38]}  e6 {[%clk 0:00:12]} 33. Nd6+ {[%clk 0:00:37]}  Ke7 {[%clk 0:00:12]} 34. Rg6 {[%clk 0:00:36]}  Bf4 {[%clk 0:00:12]} 35. Rg7+ {[%clk 0:00:33]}  Kf8 {[%clk 0:00:10]} 36. Nxb7 {[%clk 0:00:32]}  Kxg7 {[%clk 0:00:09]} 37. Nxd8 {[%clk 0:00:32]}  exd5 {[%clk 0:00:10]} 38. Ne6+ {[%clk 0:00:32]}  Kg6 {[%clk 0:00:09]} 39. Nxf4+ {[%clk 0:00:33]}  Kf5 {[%clk 0:00:09]} 40. e6 {[%clk 0:00:33]}  d4 {[%clk 0:00:10]} 41. e7 {[%clk 0:00:33]} 1-0


[Site "https://www.chess.com"]